[Event "*** SCC Grand Prix: Titled Tuesday Blitz"]
[Site "Chess.com"]
[Date "2020.06.02"]
[Round "9"]
[White "Manukyan_Artak"]
[Black "PauloCesarCosta_sad"]
[Result "1/2-1/2"]
[WhiteElo "2345"]
[BlackElo "2208"]
[TimeControl "180+1"]
[EndTime "11:47:11 PDT"]
[Termination "Game drawn - insufficient material"]

1. e4 {[%clk 0:03:00.9]} 1... e6 {[%clk 0:03:00]} 2. d4 {[%clk 0:03:00.5]} 2...
d5 {[%clk 0:03:00.6]} 3. e5 {[%clk 0:03:00.8]} 3... c5 {[%clk 0:03:00.5]} 4. c3
{[%clk 0:03:01.3]} 4... Qb6 {[%clk 0:03:00.9]} 5. Nf3 {[%clk 0:03:01.5]} 5...
Nc6 {[%clk 0:02:58.3]} 6. a3 {[%clk 0:03:01.7]} 6... Bd7 {[%clk 0:02:54.7]} 7.
b4 {[%clk 0:03:01.5]} 7... cxd4 {[%clk 0:02:37]} 8. cxd4 {[%clk 0:03:00.6]} 8...
Rc8 {[%clk 0:02:37.5]} 9. Bb2 {[%clk 0:02:58.9]} 9... Na5 {[%clk 0:02:18.7]} 10.
Nbd2 {[%clk 0:02:58.6]} 10... Nc4 {[%clk 0:02:01.1]} 11. Bxc4 {[%clk 0:02:57.7]}
11... dxc4 {[%clk 0:02:02]} 12. Rc1 {[%clk 0:02:55.4]} 12... Bb5 {[%clk
0:01:51.3]} 13. Ne4 {[%clk 0:02:53.1]} 13... a5 {[%clk 0:01:45]} 14. Nc5 {[%clk
0:02:43.8]} 14... axb4 {[%clk 0:01:35.1]} 15. axb4 {[%clk 0:02:41.8]} 15... Qc6
{[%clk 0:01:35.6]} 16. O-O {[%clk 0:02:40.6]} 16... b6 {[%clk 0:01:31.6]} 17. d5
{[%clk 0:02:29.2]} 17... Qxd5 {[%clk 0:01:27.4]} 18. Qxd5 {[%clk 0:02:23.6]}
18... exd5 {[%clk 0:01:27.3]} 19. Nb7 {[%clk 0:02:23.7]} 19... Bxb4 {[%clk
0:01:13.6]} 20. Nd6+ {[%clk 0:02:15.5]} 20... Bxd6 {[%clk 0:01:11.9]} 21. exd6
{[%clk 0:02:16.4]} 21... f6 {[%clk 0:01:03.2]} 22. Nd4 {[%clk 0:02:15.8]} 22...
Bd7 {[%clk 0:00:57.3]} 23. Ba3 {[%clk 0:02:02.9]} 23... Nh6 {[%clk 0:00:54]} 24.
Rb1 {[%clk 0:01:55.7]} 24... b5 {[%clk 0:00:52.7]} 25. Nxb5 {[%clk 0:01:54.9]}
25... Bxb5 {[%clk 0:00:51.7]} 26. Rxb5 {[%clk 0:01:55.8]} 26... Kf7 {[%clk
0:00:45.2]} 27. Rb7+ {[%clk 0:01:44.9]} 27... Kg6 {[%clk 0:00:44.8]} 28. d7
{[%clk 0:01:42.7]} 28... Rb8 {[%clk 0:00:42.9]} 29. Rxb8 {[%clk 0:01:40.4]}
29... Rxb8 {[%clk 0:00:42.6]} 30. Be7 {[%clk 0:01:38.6]} 30... Nf7 {[%clk
0:00:39.9]} 31. Rd1 {[%clk 0:01:38]} 31... c3 {[%clk 0:00:32.5]} 32. h4 {[%clk
0:01:36.5]} 32... c2 {[%clk 0:00:31.8]} 33. h5+ {[%clk 0:01:34.7]} 33... Kh6
{[%clk 0:00:26.7]} 34. Rc1 {[%clk 0:01:23]} 34... Rb1 {[%clk 0:00:26.3]} 35. Ba3
{[%clk 0:01:22.9]} 35... Rxc1+ {[%clk 0:00:23.2]} 36. Bxc1+ {[%clk 0:01:22.7]}
36... Kxh5 {[%clk 0:00:22.7]} 37. f3 {[%clk 0:01:23.6]} 37... Kg6 {[%clk
0:00:21.8]} 38. Kf2 {[%clk 0:01:22.3]} 38... Kf5 {[%clk 0:00:22]} 39. Ke3 {[%clk
0:01:20.7]} 39... Ke6 {[%clk 0:00:22.2]} 40. Kd4 {[%clk 0:01:21]} 40... Kxd7
{[%clk 0:00:21.6]} 41. Kxd5 {[%clk 0:01:21.4]} 41... Ne5 {[%clk 0:00:20.6]} 42.
Kd4 {[%clk 0:01:19.9]} 42... Ke6 {[%clk 0:00:19.9]} 43. Kc3 {[%clk 0:01:19.8]}
43... Kf5 {[%clk 0:00:19.4]} 44. Kxc2 {[%clk 0:01:20.1]} 44... Ng6 {[%clk
0:00:18.8]} 45. Kd1 {[%clk 0:01:13.1]} 45... Nh4 {[%clk 0:00:18.6]} 46. g4+
{[%clk 0:01:13.2]} 46... Kg6 {[%clk 0:00:17.5]} 47. Ke2 {[%clk 0:01:14.1]} 47...
Ng2 {[%clk 0:00:15.4]} 48. Kf2 {[%clk 0:01:13]} 48... Nh4 {[%clk 0:00:13.3]} 49.
Kg3 {[%clk 0:01:13.2]} 49... Nxf3 {[%clk 0:00:11.6]} 50. Kxf3 {[%clk 0:01:13.3]}
50... h5 {[%clk 0:00:11.8]} 51. Kf4 {[%clk 0:01:08.3]} 51... hxg4 {[%clk
0:00:11.7]} 52. Kxg4 {[%clk 0:01:08.8]} 52... Kf7 {[%clk 0:00:11.6]} 53. Kh5
{[%clk 0:01:06.6]} 53... g6+ {[%clk 0:00:11.5]} 54. Kh6 {[%clk 0:01:06.9]} 54...
g5 {[%clk 0:00:11.1]} 55. Bxg5 {[%clk 0:01:06.4]} 55... fxg5 {[%clk 0:00:11.4]}
56. Kxg5 {[%clk 0:01:07.3]} 1/2-1/2

[Event "*** SCC Grand Prix: Titled Tuesday Blitz"]
[Site "Chess.com"]
[Date "2020.06.02"]
[Round "9"]
[White "imdvb6307"]
[Black "ChainsOfFantasia"]
[Result "1-0"]
[WhiteElo "2385"]
[BlackElo "2473"]
[TimeControl "180+1"]
[EndTime "11:47:12 PDT"]
[Termination "imdvb6307 won by resignation"]

1. c4 {[%clk 0:03:00.1]} 1... Nf6 {[%clk 0:02:59.2]} 2. Nc3 {[%clk 0:02:59.4]}
2... e5 {[%clk 0:02:58.4]} 3. Nf3 {[%clk 0:02:58.6]} 3... e4 {[%clk 0:02:58.7]}
4. Ng5 {[%clk 0:02:58.3]} 4... b5 {[%clk 0:02:58.9]} 5. d3 {[%clk 0:02:55.2]}
5... bxc4 {[%clk 0:02:57.2]} 6. dxe4 {[%clk 0:02:48.7]} 6... Nc6 {[%clk
0:02:57.2]} 7. e3 {[%clk 0:02:36]} 7... h6 {[%clk 0:02:56.9]} 8. Nf3 {[%clk
0:02:35.8]} 8... Bb4 {[%clk 0:02:54.3]} 9. Bd2 {[%clk 0:02:32]} 9... O-O {[%clk
0:02:50.5]} 10. Bxc4 {[%clk 0:02:26.2]} 10... Bxc3 {[%clk 0:02:50.4]} 11. Bxc3
{[%clk 0:02:25.9]} 11... Nxe4 {[%clk 0:02:51]} 12. Rc1 {[%clk 0:02:16.7]} 12...
Nxc3 {[%clk 0:02:45.9]} 13. Rxc3 {[%clk 0:02:16.6]} 13... Rb8 {[%clk 0:02:41.5]}
14. Qd2 {[%clk 0:02:09.5]} 14... Qf6 {[%clk 0:02:34.9]} 15. O-O {[%clk
0:02:06.6]} 15... d6 {[%clk 0:02:27.4]} 16. b3 {[%clk 0:01:45.3]} 16... Bg4
{[%clk 0:02:23.3]} 17. Bd5 {[%clk 0:01:39.9]} 17... Bxf3 {[%clk 0:01:46.4]} 18.
Rxc6 {[%clk 0:01:29.7]} 18... Bxd5 {[%clk 0:01:38.5]} 19. Qxd5 {[%clk 0:01:29]}
19... Qb2 {[%clk 0:01:38]} 20. Qa5 {[%clk 0:01:25.3]} 20... Rb7 {[%clk
0:01:28.6]} 21. Rfc1 {[%clk 0:01:19.1]} 21... Re8 {[%clk 0:01:22.9]} 22. g3
{[%clk 0:01:16.2]} 22... Re7 {[%clk 0:01:16.7]} 23. Qa6 {[%clk 0:01:14.2]} 23...
Rb6 {[%clk 0:01:15]} 24. Qc8+ {[%clk 0:01:13.9]} 24... Kh7 {[%clk 0:01:15.2]}
25. Rxc7 {[%clk 0:01:07.8]} 25... Rxc7 {[%clk 0:01:14]} 26. Rxc7 {[%clk
0:01:06.6]} 26... Qb1+ {[%clk 0:01:02]} 27. Kg2 {[%clk 0:00:54.6]} 27... Qe4+
{[%clk 0:00:59.5]} 28. f3 {[%clk 0:00:54.6]} 28... Qd5 {[%clk 0:00:48.3]} 29.
Qd7 {[%clk 0:00:50.5]} 29... Kg6 {[%clk 0:00:39.4]} 30. e4 {[%clk 0:00:45.2]}
30... Qe6 {[%clk 0:00:32.2]} 31. Qxe6+ {[%clk 0:00:43]} 31... fxe6 {[%clk
0:00:33.1]} 32. Rxa7 {[%clk 0:00:42.8]} 32... Rc6 {[%clk 0:00:33.5]} 33. g4
{[%clk 0:00:39.2]} 33... Rc2+ {[%clk 0:00:34.4]} 34. Kg3 {[%clk 0:00:39.4]}
34... d5 {[%clk 0:00:35.1]} 35. exd5 {[%clk 0:00:38.6]} 35... exd5 {[%clk
0:00:36]} 36. a4 {[%clk 0:00:37.5]} 36... d4 {[%clk 0:00:35.9]} 37. Rd7 {[%clk
0:00:36.7]} 37... Rc3 {[%clk 0:00:35.1]} 38. Rd6+ {[%clk 0:00:31.9]} 38... Kf7
{[%clk 0:00:34.2]} 39. Rxd4 {[%clk 0:00:31.9]} 39... Rxb3 {[%clk 0:00:34.1]} 40.
h4 {[%clk 0:00:31.9]} 40... g5 {[%clk 0:00:32.8]} 41. h5 {[%clk 0:00:30.1]}
41... Rb2 {[%clk 0:00:29.9]} 42. Rd6 {[%clk 0:00:27.7]} 42... Kg7 {[%clk
0:00:29.3]} 43. a5 {[%clk 0:00:27.3]} 43... Ra2 {[%clk 0:00:29]} 44. Rg6+ {[%clk
0:00:25.8]} 44... Kh7 {[%clk 0:00:29.2]} 45. a6 {[%clk 0:00:25.4]} 45... Ra5
{[%clk 0:00:24.8]} 46. Rb6 {[%clk 0:00:25.1]} 46... Ra2 {[%clk 0:00:24.3]} 47.
Rb7+ {[%clk 0:00:24.5]} 47... Kh8 {[%clk 0:00:24.7]} 48. a7 {[%clk 0:00:24.5]}
1-0

[Event "*** SCC Grand Prix: Titled Tuesday Blitz"]
[Site "Chess.com"]
[Date "2020.06.02"]
[Round "9"]
[White "WinstonSilvakov"]
[Black "AGW2016"]
[Result "0-1"]
[WhiteElo "2082"]
[BlackElo "2311"]
[TimeControl "180+1"]
[EndTime "11:47:12 PDT"]
[Termination "AGW2016 won by resignation"]

1. d4 {[%clk 0:03:00.9]} 1... Nf6 {[%clk 0:03:00]} 2. e3 {[%clk 0:03:01.1]} 2...
g6 {[%clk 0:02:56.9]} 3. Bd3 {[%clk 0:03:00.5]} 3... Bg7 {[%clk 0:02:56.7]} 4.
h4 {[%clk 0:02:59.4]} 4... h5 {[%clk 0:02:55.8]} 5. c4 {[%clk 0:02:54.7]} 5...
d6 {[%clk 0:02:55.1]} 6. Qc2 {[%clk 0:02:53.1]} 6... c5 {[%clk 0:02:55.1]} 7.
Ne2 {[%clk 0:02:51]} 7... Nc6 {[%clk 0:02:54.7]} 8. a3 {[%clk 0:02:46.3]} 8...
e5 {[%clk 0:02:49.1]} 9. d5 {[%clk 0:02:38.7]} 9... Ne7 {[%clk 0:02:49.1]} 10.
e4 {[%clk 0:02:39]} 10... O-O {[%clk 0:02:42.7]} 11. Nbc3 {[%clk 0:02:39.2]}
11... Nh7 {[%clk 0:02:30.7]} 12. f3 {[%clk 0:02:33.7]} 12... f5 {[%clk 0:02:28]}
13. Be3 {[%clk 0:02:34.1]} 13... a6 {[%clk 0:02:14.5]} 14. O-O-O {[%clk
0:02:28.3]} 14... Rb8 {[%clk 0:02:08.8]} 15. Rdg1 {[%clk 0:02:28.2]} 15... f4
{[%clk 0:01:51.6]} 16. Bd2 {[%clk 0:02:06.1]} 16... Bd7 {[%clk 0:01:49.2]} 17.
g4 {[%clk 0:02:04.9]} 17... fxg3 {[%clk 0:01:48.6]} 18. Rxg3 {[%clk 0:02:03.6]}
18... b5 {[%clk 0:01:48.9]} 19. Rhg1 {[%clk 0:01:59.1]} 19... Be8 {[%clk
0:01:28.1]} 20. f4 {[%clk 0:01:51.5]} 20... exf4 {[%clk 0:01:27]} 21. Nxf4
{[%clk 0:01:48.7]} 21... b4 {[%clk 0:01:24.3]} 22. axb4 {[%clk 0:01:42.5]} 22...
cxb4 {[%clk 0:01:24.2]} 23. Nce2 {[%clk 0:01:33.9]} 23... Qa5 {[%clk 0:01:16.9]}
24. Qb3 {[%clk 0:01:19.2]} 24... Nf6 {[%clk 0:00:31.8]} 25. Nd4 {[%clk
0:00:53.5]} 25... Nd7 {[%clk 0:00:28.9]} 26. Nde6 {[%clk 0:00:50.4]} 26... Nc5
{[%clk 0:00:26.6]} 27. Nxc5 {[%clk 0:00:47.9]} 27... Qxc5 {[%clk 0:00:26.2]} 28.
Nxh5 {[%clk 0:00:45.7]} 28... a5 {[%clk 0:00:20.3]} 29. Nxg7 {[%clk 0:00:41.4]}
29... Kxg7 {[%clk 0:00:20.5]} 30. h5 {[%clk 0:00:37.8]} 30... a4 {[%clk
0:00:20.6]} 31. Qc2 {[%clk 0:00:34.3]} 31... a3 {[%clk 0:00:19]} 32. b3 {[%clk
0:00:32.9]} 32... Qd4 {[%clk 0:00:17.6]} 33. Be3 {[%clk 0:00:29.4]} 33... Qe5
{[%clk 0:00:14.7]} 34. hxg6 {[%clk 0:00:25.7]} 34... a2 {[%clk 0:00:14.2]} 35.
Kd2 {[%clk 0:00:22.1]} 35... a1=Q {[%clk 0:00:13.5]} 36. Rxa1 {[%clk 0:00:20.1]}
36... Qxa1 {[%clk 0:00:11.9]} 37. Qb2+ {[%clk 0:00:17.9]} 37... Qxb2+ {[%clk
0:00:11.8]} 0-1

[Event "*** SCC Grand Prix: Titled Tuesday Blitz"]
[Site "Chess.com"]
[Date "2020.06.02"]
[Round "9"]
[White "Zmeeed63"]
[Black "ecwinslow"]
[Result "0-1"]
[WhiteElo "2200"]
[BlackElo "2146"]
[TimeControl "180+1"]
[EndTime "11:47:12 PDT"]
[Termination "ecwinslow won on time"]

1. d4 {[%clk 0:03:00.9]} 1... Nf6 {[%clk 0:02:58.8]} 2. c4 {[%clk 0:03:00.6]}
2... g6 {[%clk 0:02:58.3]} 3. Nc3 {[%clk 0:03:00.5]} 3... Bg7 {[%clk 0:02:58.8]}
4. Nf3 {[%clk 0:02:59.7]} 4... O-O {[%clk 0:02:56.8]} 5. Bg5 {[%clk 0:03:00.2]}
5... d6 {[%clk 0:02:53.3]} 6. e3 {[%clk 0:03:00.5]} 6... h6 {[%clk 0:02:52.5]}
7. Bh4 {[%clk 0:03:00.5]} 7... c5 {[%clk 0:02:52.5]} 8. Be2 {[%clk 0:03:00.8]}
8... cxd4 {[%clk 0:02:48.1]} 9. exd4 {[%clk 0:03:01.7]} 9... g5 {[%clk
0:02:47.1]} 10. Bg3 {[%clk 0:03:01.6]} 10... Nh5 {[%clk 0:02:47.7]} 11. Qd3
{[%clk 0:02:59.5]} 11... e6 {[%clk 0:02:40.7]} 12. Nd2 {[%clk 0:02:56.7]} 12...
Nxg3 {[%clk 0:02:39.4]} 13. hxg3 {[%clk 0:02:57.6]} 13... Nc6 {[%clk 0:02:38.1]}
14. a3 {[%clk 0:02:56.9]} 14... Nxd4 {[%clk 0:02:36.1]} 15. Rxh6 {[%clk
0:02:38.3]} 15... Bxh6 {[%clk 0:02:33.1]} 16. Qxd4 {[%clk 0:02:38.5]} 16... Bg7
{[%clk 0:02:32.5]} 17. Qe4 {[%clk 0:02:34.8]} 17... f5 {[%clk 0:02:30.4]} 18.
Qf3 {[%clk 0:02:34.9]} 18... g4 {[%clk 0:02:24.5]} 19. Qe3 {[%clk 0:02:33.6]}
19... a6 {[%clk 0:02:21.9]} 20. O-O-O {[%clk 0:02:33.3]} 20... Qc7 {[%clk
0:02:07.7]} 21. Rh1 {[%clk 0:02:27.8]} 21... Qe7 {[%clk 0:01:54]} 22. Nd5 {[%clk
0:02:20.9]} 22... Qd8 {[%clk 0:01:46]} 23. Nb6 {[%clk 0:02:17.7]} 23... Rb8
{[%clk 0:01:40.8]} 24. c5 {[%clk 0:01:53.8]} 24... d5 {[%clk 0:01:34]} 25. f3
{[%clk 0:00:55.1]} 25... gxf3 {[%clk 0:01:22.8]} 26. Nxf3 {[%clk 0:00:56]} 26...
Qc7 {[%clk 0:01:14.2]} 27. b4 {[%clk 0:00:41]} 27... Bd7 {[%clk 0:01:03.6]} 28.
Qg5 {[%clk 0:00:32.8]} 28... Rf6 {[%clk 0:00:39.3]} 29. Bd3 {[%clk 0:00:14.8]}
29... Re8 {[%clk 0:00:37.4]} 30. g4 {[%clk 0:00:13.4]} 30... Bb5 {[%clk
0:00:22.3]} 31. Bxb5 {[%clk 0:00:10.1]} 31... axb5 {[%clk 0:00:21.6]} 32. gxf5
{[%clk 0:00:11]} 32... exf5 {[%clk 0:00:17.8]} 33. Qh5 {[%clk 0:00:10.4]} 33...
Qf4+ {[%clk 0:00:15.2]} 34. Kb1 {[%clk 0:00:09.3]} 34... Qe4+ {[%clk 0:00:14.2]}
35. Ka1 {[%clk 0:00:07.9]} 35... Rh6+ {[%clk 0:00:14.3]} 0-1

[Event "*** SCC Grand Prix: Titled Tuesday Blitz"]
[Site "Chess.com"]
[Date "2020.06.02"]
[Round "9"]
[White "Shubinkirill2003"]
[Black "csati17"]
[Result "1-0"]
[WhiteElo "2722"]
[BlackElo "2586"]
[TimeControl "180+1"]
[EndTime "11:47:13 PDT"]
[Termination "Shubinkirill2003 won by resignation"]

1. e4 {[%clk 0:03:00.9]} 1... e6 {[%clk 0:03:00.3]} 2. d4 {[%clk 0:03:00.4]}
2... d5 {[%clk 0:03:00.9]} 3. Nc3 {[%clk 0:03:00.3]} 3... Bb4 {[%clk 0:03:00.7]}
4. e5 {[%clk 0:02:59.2]} 4... Ne7 {[%clk 0:03:01]} 5. a3 {[%clk 0:02:59.5]} 5...
Bxc3+ {[%clk 0:03:01.4]} 6. bxc3 {[%clk 0:03:00.4]} 6... b6 {[%clk 0:03:02.3]}
7. Qg4 {[%clk 0:02:59.2]} 7... Ng6 {[%clk 0:03:02.6]} 8. h4 {[%clk 0:02:59.3]}
8... h5 {[%clk 0:03:03]} 9. Qd1 {[%clk 0:02:58.9]} 9... Qd7 {[%clk 0:03:02.6]}
10. Ne2 {[%clk 0:02:56.8]} 10... Qc6 {[%clk 0:02:48.6]} 11. Bd2 {[%clk
0:02:50.3]} 11... Ba6 {[%clk 0:02:46.3]} 12. Ng3 {[%clk 0:02:49.8]} 12... Bxf1
{[%clk 0:02:45.8]} 13. Kxf1 {[%clk 0:02:50.7]} 13... Nd7 {[%clk 0:02:34.5]} 14.
Qe2 {[%clk 0:02:39.4]} 14... Ne7 {[%clk 0:02:24.3]} 15. Nxh5 {[%clk 0:02:29.1]}
15... Nf5 {[%clk 0:02:24.5]} 16. g4 {[%clk 0:02:25.6]} 16... g6 {[%clk
0:02:24.3]} 17. Ng3 {[%clk 0:01:46.6]} 17... Nxg3+ {[%clk 0:02:18.3]} 18. fxg3
{[%clk 0:01:46]} 18... a5 {[%clk 0:02:12.6]} 19. a4 {[%clk 0:01:41.5]} 19... f6
{[%clk 0:02:06.8]} 20. Kg2 {[%clk 0:01:10]} 20... fxe5 {[%clk 0:02:05]} 21. Rhf1
{[%clk 0:00:52.3]} 21... O-O-O {[%clk 0:01:55.4]} 22. dxe5 {[%clk 0:00:36.8]}
22... d4+ {[%clk 0:01:48.3]} 23. Qf3 {[%clk 0:00:29.4]} 23... Nxe5 {[%clk
0:01:47.3]} 24. Qxc6 {[%clk 0:00:28.5]} 24... Nxc6 {[%clk 0:01:48.2]} 25. Bg5
{[%clk 0:00:28.5]} 25... Rd7 {[%clk 0:01:45.7]} 26. cxd4 {[%clk 0:00:23.1]}
26... Nxd4 {[%clk 0:01:39.6]} 27. Rad1 {[%clk 0:00:22.1]} 27... Nxc2 {[%clk
0:01:33.4]} 28. Rxd7 {[%clk 0:00:21.5]} 28... Kxd7 {[%clk 0:01:34.3]} 29. Rf7+
{[%clk 0:00:21.3]} 29... Kd6 {[%clk 0:01:28.5]} 30. Bf6 {[%clk 0:00:19.3]} 30...
Rg8 {[%clk 0:01:26.1]} 31. h5 {[%clk 0:00:18.8]} 31... e5 {[%clk 0:00:37.1]} 32.
Rg7 {[%clk 0:00:14.7]} 32... Ne3+ {[%clk 0:00:20.6]} 33. Kf3 {[%clk 0:00:14.1]}
33... Rf8 {[%clk 0:00:21.2]} 34. Kxe3 {[%clk 0:00:14]} 34... Rxf6 {[%clk
0:00:21.2]} 35. h6 {[%clk 0:00:13.4]} 35... Rf8 {[%clk 0:00:20.7]} 36. Rxg6+
{[%clk 0:00:13]} 36... Ke7 {[%clk 0:00:17.5]} 37. g5 {[%clk 0:00:12.9]} 37...
Rh8 {[%clk 0:00:16.4]} 38. Rg7+ {[%clk 0:00:12.8]} 38... Ke6 {[%clk 0:00:17.3]}
39. Ke4 {[%clk 0:00:12.3]} 39... Rd8 {[%clk 0:00:17.1]} 40. h7 {[%clk
0:00:11.5]} 40... Rh8 {[%clk 0:00:16.8]} 41. g6 {[%clk 0:00:11.7]} 1-0

[Event "*** SCC Grand Prix: Titled Tuesday Blitz"]
[Site "Chess.com"]
[Date "2020.06.02"]
[Round "9"]
[White "korbul"]
[Black "Logman74"]
[Result "1-0"]
[WhiteElo "2488"]
[BlackElo "2363"]
[TimeControl "180+1"]
[EndTime "11:47:13 PDT"]
[Termination "korbul won on time"]

1. d4 {[%clk 0:03:00.9]} 1... Nf6 {[%clk 0:02:58.8]} 2. c4 {[%clk 0:02:59.9]}
2... g6 {[%clk 0:02:58.8]} 3. Nc3 {[%clk 0:02:59.5]} 3... Bg7 {[%clk 0:02:59.1]}
4. e4 {[%clk 0:02:59.1]} 4... O-O {[%clk 0:02:59]} 5. f3 {[%clk 0:02:59.3]} 5...
d6 {[%clk 0:02:58.3]} 6. Bg5 {[%clk 0:02:58.7]} 6... Nc6 {[%clk 0:02:50.9]} 7.
Nge2 {[%clk 0:02:58]} 7... a6 {[%clk 0:02:45.1]} 8. Rc1 {[%clk 0:02:57.1]} 8...
Bd7 {[%clk 0:02:42.7]} 9. b3 {[%clk 0:02:56.8]} 9... b5 {[%clk 0:02:40.9]} 10.
Nd5 {[%clk 0:02:54.2]} 10... bxc4 {[%clk 0:02:37.3]} 11. bxc4 {[%clk 0:02:53.6]}
11... e6 {[%clk 0:02:28.6]} 12. Nxf6+ {[%clk 0:02:50.9]} 12... Bxf6 {[%clk
0:02:28.4]} 13. Bxf6 {[%clk 0:02:50.8]} 13... Qxf6 {[%clk 0:02:26.3]} 14. Qd2
{[%clk 0:02:51]} 14... Rab8 {[%clk 0:02:19.3]} 15. d5 {[%clk 0:02:51.2]} 15...
Rb2 {[%clk 0:02:06]} 16. Qc3 {[%clk 0:02:48.4]} 16... Ne5 {[%clk 0:01:59.1]} 17.
f4 {[%clk 0:02:43.4]} 17... Ng4 {[%clk 0:01:40.2]} 18. e5 {[%clk 0:02:43.5]}
18... Rxe2+ {[%clk 0:01:24.9]} 19. Bxe2 {[%clk 0:02:42.6]} 19... Qxf4 {[%clk
0:01:24.4]} 20. Bxg4 {[%clk 0:02:38.5]} 20... Qxg4 {[%clk 0:01:21.1]} 21. O-O
{[%clk 0:02:36.5]} 21... exd5 {[%clk 0:00:57.2]} 22. cxd5 {[%clk 0:02:30.1]}
22... Bb5 {[%clk 0:00:55.8]} 23. Rfe1 {[%clk 0:02:28.7]} 23... dxe5 {[%clk
0:00:52.7]} 24. Rxe5 {[%clk 0:02:22.1]} 24... Rd8 {[%clk 0:00:44.3]} 25. h3
{[%clk 0:02:20.2]} 25... Qf4 {[%clk 0:00:38.6]} 26. Rce1 {[%clk 0:02:14.7]}
26... h5 {[%clk 0:00:28.1]} 27. Kh1 {[%clk 0:02:10]} 27... Kh7 {[%clk
0:00:22.9]} 28. Qe3 {[%clk 0:02:02.7]} 28... Qf6 {[%clk 0:00:19.8]} 29. Kh2
{[%clk 0:01:46.2]} 29... Rd6 {[%clk 0:00:19.5]} 30. Rd1 {[%clk 0:01:42.1]} 30...
Bc4 {[%clk 0:00:18]} 31. Rd4 {[%clk 0:01:41]} 31... Bb5 {[%clk 0:00:14.7]} 32.
Rf4 {[%clk 0:01:40.4]} 32... Qg7 {[%clk 0:00:14.1]} 33. Re7 {[%clk 0:01:38.6]}
33... Rf6 {[%clk 0:00:13.9]} 34. Rxc7 {[%clk 0:01:31]} 34... g5 {[%clk
0:00:10.2]} 35. Qe4+ {[%clk 0:01:19.7]} 35... Kh6 {[%clk 0:00:09.6]} 36. Rxf6+
{[%clk 0:01:12.4]} 36... Qxf6 {[%clk 0:00:09.5]} 37. Re7 {[%clk 0:01:10.8]}
37... h4 {[%clk 0:00:08.1]} 38. Qe5 {[%clk 0:01:08.8]} 38... Qf2 {[%clk
0:00:06.8]} 39. Qd6+ {[%clk 0:00:54.4]} 39... Kh5 {[%clk 0:00:06.7]} 40. Qe5
{[%clk 0:00:50.4]} 40... Bf1 {[%clk 0:00:05.8]} 41. Qe4 {[%clk 0:00:43.1]} 41...
Qg3+ {[%clk 0:00:03.1]} 42. Kg1 {[%clk 0:00:43]} 42... Bd3 {[%clk 0:00:03.5]}
43. Qf3+ {[%clk 0:00:41.7]} 1-0

[Event "*** SCC Grand Prix: Titled Tuesday Blitz"]
[Site "Chess.com"]
[Date "2020.06.02"]
[Round "9"]
[White "Igrok3069"]
[Black "1977Ivan"]
[Result "0-1"]
[WhiteElo "2746"]
[BlackElo "2619"]
[TimeControl "180+1"]
[EndTime "11:47:14 PDT"]
[Termination "1977Ivan won on time"]

1. d4 {[%clk 0:03:00.9]} 1... Nf6 {[%clk 0:02:59.4]} 2. c4 {[%clk 0:02:59.4]}
2... e6 {[%clk 0:02:59.5]} 3. Nc3 {[%clk 0:02:58.9]} 3... Bb4 {[%clk 0:02:58.9]}
4. Qc2 {[%clk 0:02:59.2]} 4... c5 {[%clk 0:02:32.8]} 5. dxc5 {[%clk 0:02:58.2]}
5... Na6 {[%clk 0:02:31.8]} 6. a3 {[%clk 0:02:57.6]} 6... Bxc3+ {[%clk
0:02:31.4]} 7. Qxc3 {[%clk 0:02:57.7]} 7... Nxc5 {[%clk 0:02:31.9]} 8. b4 {[%clk
0:02:57.6]} 8... Na4 {[%clk 0:02:30.9]} 9. Qb3 {[%clk 0:02:52.2]} 9... b5 {[%clk
0:02:30.8]} 10. cxb5 {[%clk 0:02:52.1]} 10... Nb6 {[%clk 0:02:30.9]} 11. Nf3
{[%clk 0:02:43.5]} 11... Bb7 {[%clk 0:02:31.1]} 12. e3 {[%clk 0:02:43.8]} 12...
O-O {[%clk 0:02:27.7]} 13. Be2 {[%clk 0:02:43.2]} 13... Rc8 {[%clk 0:02:27.4]}
14. O-O {[%clk 0:02:41.9]} 14... d6 {[%clk 0:02:26.5]} 15. a4 {[%clk 0:02:38.2]}
15... Bd5 {[%clk 0:02:21.7]} 16. Qd1 {[%clk 0:02:37.7]} 16... e5 {[%clk
0:02:12.8]} 17. a5 {[%clk 0:02:31.7]} 17... Nc4 {[%clk 0:02:12.5]} 18. Nd2
{[%clk 0:01:53.5]} 18... Qd7 {[%clk 0:02:11.7]} 19. Nxc4 {[%clk 0:01:29.9]}
19... Bxc4 {[%clk 0:02:11.2]} 20. Bxc4 {[%clk 0:01:12.8]} 20... Rxc4 {[%clk
0:02:10.3]} 21. b6 {[%clk 0:01:13.7]} 21... axb6 {[%clk 0:01:54]} 22. a6 {[%clk
0:01:13.9]} 22... Ra8 {[%clk 0:01:48.4]} 23. e4 {[%clk 0:00:30.5]} 23... b5
{[%clk 0:01:25.2]} 24. Be3 {[%clk 0:00:28.2]} 24... Nxe4 {[%clk 0:01:22.3]} 25.
a7 {[%clk 0:00:14.6]} 25... d5 {[%clk 0:01:20.8]} 26. Qd3 {[%clk 0:00:06.9]}
26... Qb7 {[%clk 0:01:10.4]} 27. f3 {[%clk 0:00:04]} 27... Nc3 {[%clk
0:01:02.1]} 28. Rfe1 {[%clk 0:00:04.3]} 28... d4 {[%clk 0:00:59.8]} 29. Bf2
{[%clk 0:00:04]} 29... f6 {[%clk 0:00:58.7]} 30. Qf5 {[%clk 0:00:02.8]} 30...
Qd5 {[%clk 0:00:43.9]} 31. f4 {[%clk 0:00:01.7]} 31... d3 {[%clk 0:00:40.7]} 32.
fxe5 {[%clk 0:00:01.9]} 32... d2 {[%clk 0:00:40.6]} 33. Rf1 {[%clk 0:00:02]}
33... d1=Q {[%clk 0:00:36.3]} 34. Raxd1 {[%clk 0:00:02]} 34... Nxd1 {[%clk
0:00:36.4]} 35. Bc5 {[%clk 0:00:02.9]} 35... Nc3 {[%clk 0:00:31.4]} 36. Kh1
{[%clk 0:00:02.1]} 36... Ne4 {[%clk 0:00:29]} 37. Qh5 {[%clk 0:00:01.1]} 37...
Nxc5 {[%clk 0:00:27.5]} 38. bxc5 {[%clk 0:00:01.6]} 38... Rxc5 {[%clk
0:00:27.3]} 39. Qg4 {[%clk 0:00:01.3]} 39... Qxe5 {[%clk 0:00:25.3]} 0-1